bitfinex-derivatives/quotes_ETHF0:USTF0_20210406
["timestamp","ask_amount","ask_price","bid_price","bid_amount"]
[1617713179395,15.0,2124.1,2124.0,102.96595]
[1617713180294,15.0,2124.1,2124.0,103.90695]
[1617713180494,15.0,2124.1,2124.0,102.96595]
[1617713181898,15.0,2124.1,2124.0,103.91315]
[1617713183798,15.0,2124.1,2124.0,102.96595]
[1617713184800,15.0,2124.1,2124.0,103.92055]
[1617713185502,15.0,2124.1,2124.0,102.96595]
[1617713186503,15.0,2124.1,2124.0,103.89665]
[1617713186703,15.0,2124.1,2124.0,102.96595]
[1617713187704,15.0,2124.1,2124.0,103.91705]
[1617713188303,15.0,2124.1,2124.0,102.96595]
[1617713193309,15.0,2124.1,2124.0,103.91295]
[1617713194110,15.0,2124.1,2124.0,102.96595]
[1617713204627,15.0,2124.1,2124.0,103.90945]
[1617713205227,15.0,2124.1,2124.0,102.96595]
[1617713207229,15.0,2124.1,2124.0,103.92025]
[1617713207633,15.0,2124.1,2124.0,102.96595]
[1617713215137,15.0,2124.1,2124.0,103.90915]
[1617713217239,15.0,2124.1,2124.0,102.96595]
[1617713220342,15.0,2124.1,2124.0,38.80695]
[1617713220542,69.3239,2124.1,2124.0,38.80695]
[1617713220842,69.3239,2124.1,2124.0,8.80695]
[1617713220843,72.2793,2124.1,2124.0,8.80695]
[1617713223045,72.2793,2124.1,2124.0,5.9]
[1617713223246,72.2793,2124.1,2124.0,6.8482]
[1617713223445,72.2793,2124.1,2123.8,5.87]
[1617713223847,72.2793,2124.1,2124.0,5.69]
[1617713224047,72.2793,2124.1,2123.8,5.87]
[1617713224547,72.2793,2124.1,2123.7,2.90695]
[1617713224548,17.9554,2124.1,2124.0,81.0128]
[1617713224747,15.0,2124.1,2124.0,75.3628]
[1617713225047,15.0,2124.1,2124.0,84.06975]
[1617713226351,15.0,2124.1,2124.0,8.70695]
[1617713230855,15.0,2124.1,2124.0,5.8]
[1617713231355,15.0,2124.1,2123.6,8.67695]
[1617713231557,15.0,2124.1,2124.0,5.75]
[1617713231959,15.0,2124.1,2123.6,2.90695]
[1617713232157,15.0,2124.1,2124.0,5.76]
[1617713232659,60.3016,2123.6,2122.2,56.1845]
[1617713232968,62.7738,2123.6,2123.0,0.27]
[1617713233158,62.7738,2123.6,2123.2,2.90695]
[1617713233558,62.7738,2123.6,2122.3,5.69]
[1617713233559,62.7738,2123.6,2123.3,3.76]
[1617713234063,62.7738,2123.6,2123.2,5.78]
[1617713234264,62.7738,2123.6,2123.4,5.81]
[1617713234661,62.7738,2123.6,2122.6,35.3]
[1617713234861,62.7738,2123.6,2123.5,5.76]
[1617713235060,65.68075,2123.6,2123.5,5.76]
[1617713235261,65.68075,2123.6,2122.7,5.66]
[1617713235461,65.68075,2123.6,2123.5,5.67]
[1617713235862,65.68075,2123.6,2122.7,5.8]
[1617713236961,63.20855,2123.6,2122.7,5.8]
[1617713237162,2.90695,2122.9,2122.7,5.8]
[1617713237764,2.90695,2122.9,2122.8,30.0]
[1617713237963,2.90695,2122.9,2122.8,33.603]
[1617713238169,2.90695,2122.9,2122.8,38.3612]
[1617713240165,56.8485,2123.4,2122.8,38.3612]
[1617713241065,56.8485,2123.4,2123.1,2.90695]
[1617713241365,5.0,2123.6,2123.1,2.90695]
[1617713241869,5.0,2123.6,2123.2,5.83]
[1617713243066,2.90695,2123.3,2123.2,5.83]
[1617713247974,2.90695,2123.3,2123.1,5.85]
[1617713248475,2.90695,2123.3,2123.2,5.85]
[1617713248675,2.90695,2123.3,2123.1,5.8]
[1617713248875,2.90695,2123.3,2123.1,6.7369]
[1617713249075,2.90695,2123.3,2123.2,5.8]
[1617713249276,2.90695,2123.3,2123.0,69.6527]
[1617713249478,2.90695,2123.3,2123.1,5.93]
[1617713249678,2.90695,2123.3,2123.2,5.78]
[1617713249879,2.90695,2123.3,2123.0,69.6527]
[1617713250378,2.90695,2123.3,2123.2,5.77]
[1617713250581,2.90695,2123.3,2123.0,69.6527]
[1617713251081,2.90695,2123.3,2123.1,5.83]
[1617713257187,2.90695,2123.3,2123.1,6.775]
[1617713258087,2.90695,2123.3,2123.1,5.83]
[1617713261889,5.0,2123.2,2123.1,5.83]
[1617713263190,5.9528,2123.2,2123.1,5.83]
[1617713263390,5.0,2123.2,2123.1,5.83]
[1617713269998,5.0,2123.2,2123.0,5.81]
[1617713273100,5.0,2123.2,2123.1,5.74]
[1617713273502,5.0,2123.2,2123.0,5.91]
[1617713274600,5.0,2123.2,2123.0,6.8522]
[1617713276605,5.0,2123.2,2123.0,5.91]
[1617713280514,5.0,2123.2,2122.0,30.0]
[1617713280812,62.9942,2123.1,2123.0,5.8]
[1617713281117,65.2007,2123.1,2122.1,4.48]
[1617713281311,65.2007,2123.1,2122.0,30.0]
[1617713281514,65.2007,2123.1,2123.0,5.81]
[1617713281714,65.2007,2123.1,2122.2,2.90695]
[1617713282113,65.2007,2123.1,2123.0,5.75]
[1617713282512,65.2007,2123.1,2122.2,2.90695]
[1617713282715,65.2007,2123.1,2123.0,5.89]
[1617713283116,65.2007,2123.1,2122.3,5.77]
[1617713283315,65.2007,2123.1,2123.0,5.78]
[1617713283716,65.2007,2123.1,2122.3,5.92]
[1617713283717,68.10765,2123.1,2122.3,5.92]
[1617713283915,68.10765,2123.1,2123.0,5.82]
[1617713284216,68.10765,2123.1,2122.3,5.68]
[1617713284515,68.10765,2123.1,2123.0,5.88]
[1617713285015,5.11345,2123.1,2122.5,54.1272]
[1617713285216,5.11345,2123.1,2123.0,5.75]
[1617713285415,5.11345,2123.1,2122.6,2.98]
[1617713285617,2.90695,2122.7,2122.6,2.98]
[1617713285818,2.90695,2122.7,2122.5,54.1272]
[1617713286015,2.90695,2122.7,2122.6,5.85]
[1617713286416,2.90695,2122.7,2122.3,5.91]
[1617713286619,2.90695,2122.7,2122.6,5.75]
[1617713286917,2.90695,2122.7,2122.3,5.76]
[1617713287417,2.90695,2122.7,2122.2,2.90695]
[1617713287418,2.90695,2122.7,2122.6,5.84]
[1617713287618,2.90695,2122.7,2122.3,5.68]
[1617713287917,2.90695,2122.7,2122.6,5.75]
[1617713288317,2.90695,2122.7,2122.3,5.65]
[1617713288617,2.90695,2122.7,2122.6,5.82]
[1617713288818,2.90695,2122.7,2122.2,65.09155]
[1617713289023,2.90695,2122.7,2122.3,5.81]
[1617713289719,2.90695,2122.4,2122.3,5.81]
[1617713291828,2.90695,2122.4,2122.3,35.81]
[1617713293426,2.90695,2122.4,2122.3,5.81]
[1617713296629,2.90695,2122.4,2122.3,35.81]
[1617713298632,2.90695,2122.4,2122.3,36.7395]
[1617713298833,2.90695,2122.4,2122.3,35.81]
[1617713299735,2.90695,2122.4,2122.3,36.7561]
[1617713299934,2.90695,2122.4,2122.3,35.81]
[1617713301738,5.13105,2122.4,2122.3,5.81]
[1617713302941,2.90695,2122.4,2122.3,5.81]
[1617713303442,2.90695,2122.4,2122.3,6.7444]
[1617713303640,2.90695,2122.4,2122.3,5.81]
[1617713304040,2.90695,2122.4,2122.3,35.81]
[1617713304341,60.0226,2123.5,2122.3,35.81]
[1617713305745,60.0226,2123.5,2122.8,2.90695]
[1617713306144,60.0226,2123.5,2122.9,5.86]
[1617713306344,1.1,2123.7,2122.9,5.86]
[1617713306644,1.1,2123.7,2122.9,70.4484]
[1617713307844,2.90695,2123.0,2122.9,70.4484]
[1617713311146,2.90695,2123.0,2122.9,5.86]
[1617713311548,2.90695,2123.0,2122.0,80.9387]
[1617713311748,4.82215,2123.0,2122.9,5.8]
[1617713312249,4.82215,2123.0,2122.6,5.81]
[1617713312448,4.82215,2123.0,2122.9,5.74]
[1617713312847,4.82215,2123.0,2122.7,5.68]
[1617713313049,2.90695,2123.0,2122.9,5.9]
[1617713313347,2.90695,2123.0,2122.6,5.8]
[1617713313553,2.90695,2123.0,2122.5,2.90695]
[1617713313748,2.90695,2123.0,2122.6,5.66]
[1617713313949,55.7414,2123.4,2122.6,5.66]
[1617713315751,54.805,2123.4,2122.6,5.66]
[1617713315953,2.90695,2122.7,2122.6,5.66]
[1617713316153,4.77005,2122.7,2122.6,5.66]
[1617713316352,5.72425,2122.7,2122.6,5.66]
[1617713316852,4.77005,2122.7,2122.6,5.66]
[1617713317652,2.90695,2122.7,2122.6,5.66]
[1617713322254,7.90695,2122.7,2122.6,5.66]
[1617713328160,7.90695,2122.7,2122.6,35.66]
[1617713329661,7.90695,2122.7,2122.6,110.8152]
[1617713331562,8.84245,2122.7,2122.6,110.8152]
[1617713331765,8.84245,2122.7,2122.6,80.8152]
[1617713331962,7.90695,2122.7,2122.6,5.66]
[1617713332862,7.90695,2122.7,2122.2,5.85]
[1617713333163,8.84245,2122.7,2122.2,5.85]
[1617713333365,7.90695,2122.7,2122.6,5.84]
[1617713333564,7.90695,2122.7,2122.2,5.86]
[1617713333767,7.90695,2122.7,2122.6,5.76]
[1617713334166,7.90695,2122.7,2122.2,8.63695]
[1617713334566,7.90695,2122.7,2122.6,5.81]
[1617713334765,7.90695,2122.7,2122.3,5.65]
[1617713335168,7.90695,2122.7,2122.6,5.78]
[1617713335371,7.90695,2122.7,2122.3,5.67]
[1617713335768,7.90695,2122.7,2122.6,5.8]
[1617713336168,7.90695,2122.7,2122.3,5.92]
[1617713336371,8.84255,2122.7,2122.6,5.75]
[1617713336571,7.90695,2122.7,2122.6,5.75]
[1617713336770,7.90695,2122.7,2122.3,5.66]
[1617713337072,7.90695,2122.7,2122.6,5.92]
[1617713337269,7.90695,2122.7,2122.3,5.88]
[1617713337671,7.90695,2122.7,2122.2,2.90695]
[1617713337672,8.83955,2122.7,2122.6,5.92]
[1617713337872,8.83955,2122.7,2122.3,5.93]
[1617713338072,2.90695,2122.4,2122.3,5.93]
[1617713338274,2.90695,2122.4,2122.2,2.90695]
[1617713338472,2.90695,2122.4,2122.3,5.8]
[1617713340174,3.84255,2122.4,2122.3,5.8]
[1617713340675,2.90695,2122.4,2122.3,5.8]
[1617713341075,71.82145,2122.4,2122.3,5.8]
[1617713341976,2.90695,2122.4,2122.3,5.8]
[1617713342377,2.90695,2122.4,2122.3,35.8]
[1617713344578,3.85295,2122.4,2122.3,5.8]
[1617713345978,2.90695,2122.4,2122.3,5.8]
[1617713356892,2.90695,2122.4,2122.3,6.7547]
[1617713357293,2.90695,2122.4,2122.3,5.8]
[1617713357593,3.84815,2122.4,2122.3,5.8]
[1617713358095,2.90695,2122.4,2122.3,5.8]
[1617713361700,7.90695,2122.4,2122.3,5.8]
[1617713362202,7.90695,2122.4,2122.3,6.7523]
[1617713362402,7.90695,2122.4,2122.3,5.8]
[1617713371211,8.85965,2122.4,2122.3,5.8]
[1617713371410,7.90695,2122.4,2122.3,5.8]
[1617713372115,77.74235,2122.4,2122.3,5.8]
[1617713372514,77.74235,2122.4,2121.8,5.75]
[1617713372710,77.74235,2122.4,2121.7,2.90695]
[1617713372711,77.74235,2122.4,2122.3,5.67]
[1617713373113,77.74235,2122.4,2121.8,5.66]
[1617713373317,77.74235,2122.4,2122.3,5.68]
[1617713373615,77.74235,2122.4,2121.8,5.79]
[1617713373913,77.74235,2122.4,2122.3,5.66]
[1617713374212,77.74235,2122.4,2121.8,5.78]
[1617713374721,77.74235,2122.4,2122.3,5.65]
[1617713375012,77.74235,2122.4,2121.7,2.90695]
[1617713375013,7.90695,2122.4,2121.8,5.78]
[1617713375313,10.44745,2122.4,2122.3,5.93]
[1617713375513,11.39235,2122.4,2122.2,5.91]
[1617713375716,10.44745,2122.4,2122.3,5.84]
[1617713376117,10.44745,2122.4,2122.2,5.88]
[1617713376817,11.38145,2122.4,2122.2,5.88]
[1617713377218,10.44745,2122.4,2122.2,5.88]
[1617713382022,75.87585,2122.4,2121.8,5.93]
[1617713382221,2.90695,2121.9,2121.8,5.93]
[1617713382523,2.90695,2121.9,2121.7,2.90695]
[1617713382721,2.90695,2121.9,2121.8,5.73]
[1617713389928,3.83915,2121.9,2121.8,5.73]
[1617713390329,2.90695,2121.9,2121.8,5.73]
[1617713394931,76.32915,2121.9,2121.8,5.73]
[1617713396735,2.90695,2121.9,2121.8,5.73]
[1617713397533,3.84465,2121.9,2121.8,5.73]
[1617713397934,2.90695,2121.9,2121.8,5.73]
[1617713417954,2.90695,2121.9,2120.7,5.82]
[1617713418351,2.90695,2121.9,2120.6,65.1198]
[1617713418352,2.90695,2121.9,2121.8,5.81]
[1617713418551,2.90695,2121.9,2121.0,2.90695]
[1617713418953,2.90695,2121.9,2121.8,5.91]
[1617713419156,2.90695,2121.9,2121.1,5.88]
[1617713419452,32.90695,2121.9,2121.8,5.75]
[1617713419652,34.90695,2121.9,2121.8,5.75]
[1617713419853,58.3985,2121.8,2121.1,5.89]
[1617713420153,88.3985,2121.8,2121.0,2.90695]
[1617713420352,88.3985,2121.8,2121.2,5.72]
[1617713420353,88.4123752,2121.8,2121.2,5.72]
[1617713420554,2.90695,2121.3,2121.2,5.72]
[1617713420754,4.97515,2121.3,2121.1,5.71]
[1617713421053,4.97515,2121.3,2121.2,5.67]
[1617713421453,4.97515,2121.3,2119.7,30.0]
[1617713421454,4.97515,2121.3,2120.1,5.67]
[1617713421655,4.97515,2121.3,2121.2,5.69]
[1617713422053,63.8805,2120.7,2120.2,5.1]
[1617713422254,65.956,2120.7,2120.2,5.1]
[1617713422453,65.956,2120.7,2120.2,0.9364]
[1617713422753,65.956,2120.7,2120.5,2.90695]
[1617713422953,65.956,2120.7,2120.6,5.9]
[1617713424456,2.0755,2120.7,2120.6,5.9]
[1617713424657,4.98245,2120.7,2120.6,5.9]
[1617713425258,4.98245,2120.7,2120.0,5.89]
[1617713425558,4.98245,2120.7,2120.6,5.77]
[1617713425959,2.90695,2120.7,2120.1,5.76]
[1617713426159,2.90695,2120.7,2120.6,5.92]
[1617713426459,2.90695,2120.7,2120.2,5.88]
[1617713426660,2.90695,2120.7,2120.3,2.90695]
[1617713426860,2.90695,2120.7,2120.6,5.85]
[1617713427260,2.90695,2120.7,2120.3,2.90695]
[1617713427461,2.90695,2120.7,2120.6,5.68]
[1617713427759,2.90695,2120.7,2120.4,5.66]
[1617713428059,2.90695,2120.7,2120.6,5.87]
[1617713428460,2.90695,2120.7,2120.4,5.69]
[1617713428660,68.0888,2120.8,2120.4,5.69]
[1617713430767,2.90695,2120.5,2120.4,5.69]
[1617713432767,1.1,2121.5,2120.4,5.69]
[1617713432968,1.1,2121.5,2120.5,55.3469]
[1617713433369,1.1,2121.5,2120.6,5.67]
[1617713434973,1.1,2121.5,2121.2,5.7]
[1617713435175,59.3564,2121.4,2121.2,5.7]
[1617713435376,59.3564,2121.4,2120.6,5.84]
[1617713435673,61.6474,2121.4,2120.2,5.57]
[1617713435876,61.6474,2121.4,2121.3,0.67]
[1617713436073,61.6474,2121.4,2120.7,5.23]
[1617713436276,2.291,2121.4,2120.3,5.78]
[1617713436575,74.7231,2120.8,2119.9,3.29]
[1617713436776,77.6374,2120.8,2120.5,2.90695]
[1617713436976,77.6374,2120.8,2120.6,5.83]
[1617713438677,2.90695,2120.7,2120.6,5.83]
[1617713439980,2.90695,2120.7,2120.6,6.7839]
[1617713440179,2.90695,2120.7,2120.6,5.83]
[1617713442482,5.67065,2120.7,2120.6,5.83]
[1617713442883,5.67065,2120.7,2120.0,2.90695]
[1617713443284,35.67065,2120.7,2120.6,5.68]
[1617713443487,35.67065,2120.7,2120.1,2.94]
[1617713443785,35.67065,2120.7,2120.0,2.90695]
[1617713443786,5.67065,2120.7,2120.6,5.75]
[1617713444184,5.67065,2120.7,2120.1,5.83]
[1617713444485,5.67065,2120.7,2120.6,5.94]
[1617713444684,5.67065,2120.7,2120.1,5.79]
[1617713444984,5.67065,2120.7,2120.6,5.74]
[1617713445285,5.67065,2120.7,2120.1,5.82]
[1617713445786,5.67065,2120.7,2120.6,5.8]
[1617713445987,5.67065,2120.7,2120.1,5.66]
[1617713446187,5.67065,2120.7,2120.6,5.73]
[1617713446687,5.67065,2120.7,2120.1,5.77]
[1617713446987,5.67065,2120.7,2120.6,5.9]
[1617713447187,5.67065,2120.7,2120.0,2.90695]
[1617713447188,2.90695,2120.7,2120.1,8.3255]
[1617713447687,2.90695,2120.7,2120.6,5.77]
[1617713447987,2.90695,2120.7,2120.2,5.9]
[1617713448189,2.90695,2120.7,2120.6,5.69]
[1617713448388,2.90695,2120.7,2120.3,5.67]
[1617713448788,74.7231,2120.8,2120.6,5.65]
[1617713449087,74.7231,2120.8,2120.4,5.68]
[1617713449288,77.0272,2120.8,2120.7,5.78]
[1617713449689,77.0272,2120.8,2120.1,5.85]
[1617713449890,77.0272,2120.8,2120.0,2.90695]
[1617713450090,77.0272,2120.8,2120.7,5.91]
[1617713450290,77.0272,2120.8,2120.1,5.87]
[1617713450490,77.0272,2120.8,2120.0,2.90695]
[1617713450691,2.3041,2120.8,2120.7,5.87]
[1617713450890,2.3041,2120.8,2120.1,5.71]
[1617713451092,3.2449,2120.8,2120.1,5.71]
[1617713451292,2.3041,2120.8,2120.7,5.86]
[1617713451491,2.3041,2120.8,2120.1,5.73]
[1617713452192,68.3287,2120.1,2119.2,5.75]
[1617713452392,68.3287,2120.1,2119.1,2.0]
[1617713452792,68.3287,2120.1,2119.7,2.90695]
[1617713453194,68.3287,2120.1,2119.8,5.88]
[1617713454896,2.90695,2119.9,2119.8,5.88]
[1617713456299,2.90695,2119.9,2119.8,6.8241]
[1617713456598,2.90695,2119.9,2119.8,5.88]
[1617713460004,2.90695,2119.9,2118.6,5.72]
[1617713460205,77.8952,2119.8,2118.6,5.72]
[1617713460420,80.1252,2119.8,2118.5,5.74]
[1617713460613,80.1252,2119.8,2118.7,5.87]
[1617713460811,80.1252,2119.8,2119.2,2.90695]
[1617713461104,2.23,2119.8,2119.2,2.90695]
[1617713461406,2.23,2119.8,2119.4,2.0]
[1617713461603,77.7954,2120.4,2119.4,2.0]
[1617713461915,77.7954,2120.4,2119.5,5.92]
[1617713462906,77.7954,2120.4,2119.9,2.90695]
[1617713463107,77.7954,2120.4,2119.9,4.98325]
[1617713463306,77.7954,2120.4,2120.0,5.74]
[1617713463908,78.738,2120.4,2120.0,6.6949]
[1617713464107,78.738,2120.4,2120.0,5.74]
[1617713464407,77.7954,2120.4,2120.0,5.74]
[1617713464906,2.90695,2120.1,2120.0,5.74]
[1617713470411,2.90695,2120.1,2120.0,7.74]
[1617713470613,3.84855,2120.1,2120.0,8.6836]
[1617713470912,2.90695,2120.1,2120.0,7.74]
[1617713471514,69.5516,2120.7,2120.0,7.74]
[1617713471718,69.5516,2120.7,2120.0,10.2938]
[1617713472916,69.5516,2120.7,2120.4,2.90695]
[1617713473115,69.5516,2120.7,2120.4,3.84175]
[1617713473316,69.5516,2120.7,2120.5,5.9]
[1617713474920,2.90695,2120.6,2120.5,5.9]
[1617713475417,2.90695,2120.6,2120.5,6.8433]
[1617713476321,2.90695,2120.6,2120.5,5.9]
[1617713477020,75.1655,2121.9,2120.5,5.9]
[1617713477321,75.1655,2121.9,2120.6,2.0]
[1617713477520,75.1655,2121.9,2120.7,5.88]
[1617713478122,75.1655,2121.9,2120.7,35.88]
[1617713478622,75.1655,2121.9,2120.8,2.0]
[1617713478823,76.1167,2121.9,2120.8,2.0]
[1617713479122,75.1655,2121.9,2121.1,2.90695]
[1617713479325,75.1655,2121.9,2121.2,5.71]
[1617713481126,2.90695,2121.3,2121.2,5.71]
[1617713482125,3.86095,2121.3,2121.2,5.71]
[1617713483628,3.86095,2121.3,2120.8,5.72]
[1617713483827,70.1725,2121.1,2120.8,5.72]
[1617713484027,70.1725,2121.1,2120.7,2.90695]
[1617713484529,70.1725,2121.1,2120.9,5.7]
[1617713484727,70.1725,2121.1,2120.8,5.79]
[1617713484931,70.1725,2121.1,2121.0,5.82]
[1617713485228,70.1725,2121.1,2120.8,5.68]
[1617713485630,70.1725,2121.1,2121.0,5.74]
[1617713485831,70.1725,2121.1,2120.8,5.67]
[1617713486132,0.01381595,2122.1,2121.0,5.8]
[1617713486533,0.01382129,2122.3,2121.1,30.0]
[1617713486834,61.5229,2122.4,2121.2,5.88]
[1617713487136,61.5229,2122.4,2121.7,2.90695]
[1617713487334,61.5229,2122.4,2121.7,5.78455]
[1617713487534,61.5229,2122.4,2121.8,0.4]
[1617713489035,2.90695,2121.9,2121.8,0.4]
[1617713490536,3.85755,2121.9,2121.8,0.4]
[1617713490836,2.90695,2121.9,2121.8,0.4]
[1617713491939,3.85185,2121.9,2121.8,1.3357]
[1617713492140,2.90695,2121.9,2121.8,0.4]
[1617713493639,3.85305,2121.9,2121.8,0.4]
[1617713493839,2.90695,2121.9,2121.8,0.4]
[1617713504652,2.90695,2121.9,2121.8,2.7041]
[1617713505653,2.90695,2121.9,2121.8,0.4]
[1617713507656,2.90695,2121.9,2121.1,5.82]
[1617713507862,2.90695,2121.9,2121.8,5.66]
[1617713508260,2.90695,2121.9,2121.1,6.7322]
[1617713508461,2.90695,2121.9,2121.2,5.91]
[1617713508462,54.0226,2121.5,2121.2,5.91]
[1617713508661,54.0226,2121.5,2121.1,0.9422]
[1617713509063,54.0226,2121.5,2121.2,5.73]
[1617713509264,2.90695,2121.3,2121.2,5.73]
[1617713511267,2.90695,2121.3,2121.1,5.89]
[1617713517174,2.90695,2121.3,2120.3,5.86]
[1617713517474,56.5368,2121.5,2121.2,5.73]
[1617713517679,56.5368,2121.5,2120.6,5.65]
[1617713517876,58.5368,2121.5,2120.6,5.65]
[1617713518180,56.5368,2121.5,2121.3,5.84]
[1617713518375,56.5368,2121.5,2120.4,5.72]
[1617713518579,56.5368,2121.5,2121.4,5.68]
[1617713518778,56.55064052,2121.5,2121.4,5.68]
[1617713518977,56.55064052,2121.5,2120.5,5.71]
[1617713519177,56.55064052,2121.5,2120.2,61.3283]
[1617713519178,56.5368,2121.5,2121.4,5.7]
[1617713519377,54.0226,2121.5,2121.4,5.7]
[1617713519577,54.0226,2121.5,2120.3,2.90695]
[1617713519878,56.9969,2121.5,2121.4,5.76]
[1617713520177,56.9969,2121.5,2120.3,2.90695]
[1617713520477,56.9969,2121.5,2121.4,5.71]
[1617713520681,56.9969,2121.5,2120.3,2.90695]
[1617713520879,57.9486,2121.5,2120.4,5.83]
[1617713521086,57.96244075,2121.5,2121.4,5.72]
[1617713521382,60.86939075,2121.5,2120.3,2.90695]
[1617713521582,59.91769075,2121.5,2120.4,5.85]
[1617713521883,61.01769075,2121.5,2121.4,5.68]
[1617713522082,61.01769075,2121.5,2120.4,5.78]
[1617713522285,61.01769075,2121.5,2121.4,5.71]
[1617713522685,61.01769075,2121.5,2120.5,5.8]
[1617713523187,61.01769075,2121.5,2121.4,5.77]
[1617713523384,61.01769075,2121.5,2120.6,5.74]
[1617713523584,61.01769075,2121.5,2121.4,5.18]
[1617713523784,61.96019075,2121.5,2121.4,5.18]
[1617713524084,61.01769075,2121.5,2120.7,5.67]
[1617713524284,61.01769075,2121.5,2121.4,4.95]
[1617713524484,61.01769075,2121.5,2120.3,2.90695]
[1617713524684,61.01769075,2121.5,2120.8,5.8]
[1617713524883,61.01769075,2121.5,2120.7,5.73]
[1617713525084,61.01769075,2121.5,2120.3,2.90695]
[1617713525284,61.01769075,2121.5,2120.9,5.68]
[1617713525585,61.01769075,2121.5,2120.8,5.85]
[1617713525586,58.11074075,2121.5,2120.7,5.9]
[1617713525787,3.1,2121.4,2120.4,3.69]
[1617713525986,33.1,2121.4,2120.9,5.83]
[1617713526294,33.1,2121.4,2120.8,5.76]
[1617713526487,0.01382389,2121.3,2120.4,5.91]
[1617713526686,0.01382389,2121.3,2121.0,0.42]
[1617713526892,0.01382108,2121.2,2120.9,5.15]
[1617713527086,0.01382108,2121.2,2120.5,5.88]
[1617713527287,57.2487,2120.8,2119.5,54.4811]
[1617713527487,2.90695,2119.7,2119.5,57.38805]
[1617713527687,2.90695,2119.7,2119.6,5.68]
[1617713528687,78.56725,2119.7,2119.6,5.68]
[1617713529687,2.90695,2119.7,2119.6,5.68]
[1617713539103,64.5629,2120.2,2119.6,5.68]
[1617713539603,64.5629,2120.2,2119.9,2.90695]
[1617713540002,64.5629,2120.2,2120.0,5.75]
[1617713541707,2.90695,2120.1,2120.0,5.75]
[1617713547116,4.99445,2120.1,2120.0,5.75]
[1617713549521,4.99445,2120.1,2119.5,5.79]
[1617713549722,2.0875,2120.1,2120.0,5.87]
[1617713549918,64.5629,2120.2,2120.0,5.87]
[1617713550118,64.5629,2120.2,2119.7,2.97]
[1617713550319,64.5629,2120.2,2119.6,2.90695]
[1617713550320,64.5629,2120.2,2120.1,5.77]
[1617713550619,1.9576,2120.7,2119.7,5.94]
[1617713550820,59.2824,2120.8,2119.7,60.7911]
[1617713551119,59.2824,2120.8,2120.1,5.73]
[1617713551318,59.2824,2120.8,2119.8,5.79]
[1617713551718,59.2824,2120.8,2120.2,5.72]
[1617713551922,59.2824,2120.8,2119.8,5.73]
[1617713552321,59.2824,2120.8,2120.3,5.8]
[1617713552822,59.2824,2120.8,2119.8,5.79]
[1617713553021,59.2824,2120.8,2120.4,5.65]
[1617713553421,59.2824,2120.8,2119.8,5.84]
[1617713553721,3.83845,2119.9,2119.8,5.84]
[1617713553921,2.90695,2119.9,2119.8,5.84]
[1617713555822,2.90695,2119.9,2119.7,5.77]
[1617713556224,2.90695,2119.9,2119.8,5.69]
[1617713556423,2.90695,2119.9,2119.6,2.90695]
[1617713556624,2.90695,2119.9,2119.7,5.88]
[1617713556826,3.84995,2119.9,2119.8,5.93]
[1617713557023,2.90695,2119.9,2119.8,5.93]
[1617713557227,2.90695,2119.9,2119.7,5.91]
[1617713558626,2.90695,2119.9,2119.7,6.8545]
[1617713558827,2.90695,2119.9,2119.7,5.91]
[1617713567741,2.90695,2119.9,2119.7,6.8622]
[1617713567937,2.90695,2119.9,2119.7,5.91]
[1617713571639,2.90695,2119.9,2119.8,76.0284]
[1617713572038,2.90695,2119.9,2119.8,81.8084]
[1617713572338,2.88993453,2119.9,2119.8,81.8084]
[1617713572738,2.88993453,2119.9,2119.8,5.78]
[1617713573240,2.88993453,2119.9,2119.7,5.82]
[1617713573538,2.88993453,2119.9,2119.8,5.7]
[1617713573839,2.88993453,2119.9,2119.7,5.67]
[1617713574239,2.88993453,2119.9,2119.8,5.66]
[1617713574641,2.88993453,2119.9,2119.7,5.85]
[1617713575641,5.57673453,2119.9,2119.7,5.85]
[1617713576240,5.57673453,2119.9,2119.8,77.9271]
[1617713576440,5.57673453,2119.9,2119.7,5.85]
[1617713576743,5.57673453,2119.9,2119.8,5.75]
[1617713576941,5.57673453,2119.9,2119.7,5.92]
[1617713577342,5.57673453,2119.9,2119.8,5.85]
[1617713577540,6.50843453,2119.9,2118.8,5.69]
[1617713577742,73.7288,2119.8,2119.2,5.72]
[1617713578142,73.7288,2119.8,2118.9,5.8]
[1617713578343,73.7288,2119.8,2119.3,5.73]
[1617713578742,75.7288,2119.8,2119.0,5.48]
[1617713578944,75.7288,2119.8,2119.4,5.42]
[1617713579345,75.7288,2119.8,2119.1,5.43]
[1617713579744,75.7288,2119.8,2119.5,5.04]
[1617713579943,75.7288,2119.8,2119.0,5.78]